Cogmind - Beta 13 @@@ ROGUE MODE // 2024.04.22 @ 12:12:13 Player: NOGames Result: Destroyed by H-77 Assassin with High-powered Shotgun Performance ------------- Evolutions (7) 3500 Regions Visited (13) 2600 Robots Destroyed (75) 375 Value Destroyed (3071) 3071 Prototype IDs (0) 0 Alien Tech Used (0) 0 Bonus (535) 535 TOTAL SCORE: 10081 Bonus ------- Follower Combat Kills 35 Entered DSFs 500 Cogmind --------- Core Integrity 0/1300 Matter 239/300 Energy 116/150 System Corruption 8% Temperature Cool (0) Movement Hovering (70) Location -3/Research Parts ------- > --- POWER (1) -------- Micro Fission Core > --- PROPULSION (3) --- Improved Gyrokinetic Inverter > --- UTILITY (14) ----- Advanced Visual Processing Unit Improved Target Analyzer Advanced Target Analyzer > --- WEAPON (3) ------- (None) > --- INVENTORY (5) ---- Light Treads Improved Signal Interpreter Improved Target Analyzer Mini Grenade Launcher Peak State ------------ > --- POWER ------------ Micro Antimatter Reactor > --- PROPULSION ------- Improved Treads Improved Medium Treads Armored Medium Treads > --- UTILITY ---------- High-capacity Storage Unit Advanced Visual Processing Unit Improved Melee Analysis Suite Improved Target Analyzer Advanced Target Analyzer Core Analyzer Improved Transmission Jammer Hardened Light Armor Plating Hardened Medium Armor Plating Hardened Medium Armor Plating Improved Shield Generator Hacking Suite Advanced System Shield Authchip [Storage] > --- WEAPON ----------- Heavy Flail Enhanced Force Lance Enhanced Force Lance > --- INVENTORY -------- Light Nuclear Core Micro Fission Core Micro Antimatter Reactor Light Treads Light Treads Improved Treads Improved Treads Improved Signal Interpreter Improved Target Analyzer Improved Light Armor Plating Mini Grenade Launcher Great Maul Great Maul [Rating: 99] Favorites ----------- Power Light Nuclear Core Engine Improved Deuterium Engine Power Core Light Nuclear Core Reactor Micro Antimatter Reactor Propulsion Light Treads Treads Light Treads Leg Aluminum Leg Hover Unit Improved Gyrokinetic Inverter Utility Core Analyzer Device Heat Sink Storage High-capacity Storage Unit Processor Core Analyzer Hackware Hacking Suite Protection Hardened Light Armor Plating Weapon Makeshift Sword Energy Cannon Beam Cannon Ballistic Gun Light Assault Rifle Impact Weapon Heavy Flail Slashing Weapon Makeshift Sword Piercing Weapon Enhanced Force Lance Build | -11 -10 -10 -10 -9 -8 -7 -7 -7 -6 -5 -4 -4 -3 ------- Run | Yrd Mat Min Exi Min Mat Fac Low Low Fac Fac Fac DSF Res Slots Evolved 14 | . . . . . 4 2 . . 2 2 2 . 2 Power . | . . . . . . . . . . . . . . Propulsion 1 | . . . . . 1 . . . . . . . . Utility 12 | . . . . . 3 2 . . 2 2 2 . 1 Weapon 1 | . . . . . . . . . . . . . 1 Parts Attached 93 | 2 6 1 6 . 18 6 1 . 5 17 4 3 24 Power 14 | . 1 1 . . 2 1 1 . 1 3 . . 4 Engine 1 | . . . . . . 1 . . . . . . . Core 11 | . 1 1 . . 2 . 1 . 1 3 . . 2 Reactor 2 | . . . . . . . . . . . . . 2 Propulsion 29 | 2 . . . . 9 2 . . . 8 2 . 6 Treads 26 | 2 . . . . 9 2 . . . 8 2 . 3 Leg . | . . . . . . . . . . . . . . Wheel . | . . . . . . . . . . . . . . Hover 3 | . . . . . . . . . . . . . 3 Flight . | . . . . . . . . . . . . . . Utility 37 | . 3 . 4 . 6 3 . . 4 5 2 2 8 Device 12 | . 3 . 2 . 3 . . . 1 . 1 . 2 Storage 2 | . . . 2 . . . . . . . . . . Processor 11 | . . . . . 3 1 . . 2 2 1 . 2 Hackware 4 | . . . . . . 1 . . . 2 . 1 . Protection 8 | . . . . . . 1 . . 1 1 . 1 4 Artifact . | . . . . . . . . . . . . . . Weapon 13 | . 2 . 2 . 1 . . . . 1 . 1 6 Energy Gun . | . . . . . . . . . . . . . . Energy Cannon 2 | . 2 . . . . . . . . . . . . Ballistic Gun . | . . . . . . . . . . . . . . Ballistic Cannon . | . . . . . . . . . . . . . . Launcher . | . . . . . . . . . . . . . . Special Weapon . | . . . . . . . . . . . . . . Impact Weapon 5 | . . . . . . . . . . . . 1 4 Slashing Weapon 4 | . . . 2 . 1 . . . . 1 . . . Piercing Weapon 2 | . . . . . . . . . . . . . 2 Special Melee Weapon . | . . . . . . . . . . . . . . Unidentified Prototypes . | . . . . . . . . . . . . . . Parts Lost 50 | . . . . . 9 1 1 . . 8 . 7 24 Power 8 | . . . . . 2 . 1 . . 2 . 1 2 Propulsion 14 | . . . . . 4 . . . . 4 . . 6 Utility 21 | . . . . . 3 1 . . . 1 . 4 12 Weapon 7 | . . . . . . . . . . 1 . 2 4 Highest Loss Streak 18 | . . . . . 4 1 1 . . 3 . 6 18 To Critical Strikes . | . . . . . . . . . . . . . . Average Slot Usage (%) 96 | . 95 100 99 100 94 98 99 100 100 99 100 83 88 Engine 1 | . 5 . . . . 6 2 . . . . . . Core 6 | . 8 14 14 14 8 . 4 7 6 4 5 1 . Treads 21 | . 28 28 28 28 25 23 23 23 20 16 15 15 12 Device 7 | . 9 14 13 14 17 5 . . 6 3 5 . 4 Storage 8 | . 14 14 14 14 9 7 7 7 6 5 5 5 3 Processor 21 | . . . . . 16 23 30 30 33 37 42 34 19 Hackware 6 | . . . . . . 6 7 7 6 13 15 11 12 Protection 4 | . . . . . . 7 7 7 6 2 . 4 14 Energy Cannon 3 | . 11 28 7 . . . . . . . . . . Ballistic Gun 1 | . 16 . . . . . . . . . . . . Slashing Weapon 11 | . . . 20 28 17 15 15 15 13 10 10 5 . Naked Turns . | . . . . . . . . . . . . . . Heaviest Build 126 | 11 17 17 60 51 54 60 59 55 63 63 52 86 126 Greatest Support 90 | 40 40 40 40 40 63 66 66 66 66 90 76 76 80 Greatest Overweight (x) 2 | . . . 1 1 1 . . . . 1 . 1 2 Average Overweight (x) . | . . . . 1 . . . . . . . . . Largest Inventory Capacity 20 | 8 8 8 20 20 20 20 20 20 20 20 20 20 20 Average Capacity 17 | 8 8 8 10 20 20 20 20 20 20 20 20 20 18 Most Carried 20 | 6 8 8 8 8 20 20 20 20 20 20 18 15 13 Average Carried 14 | 6 6 7 7 8 12 19 20 20 19 18 15 14 10 Final Capacity 20 | 8 8 8 20 20 20 20 20 20 20 20 20 20 5 Final Carried 20 | 6 8 8 8 8 20 20 20 20 19 19 15 14 4 Class Distribution -------------------- 32% | Mutant 20% | Hacker-Gladiator 17% | Scavenger-Gladiator 15% | Scavenger-Mutant 12% | Gladiator Dominant Class ---------------- Mutant | -10/Materials Mutant | -10/Mines Mutant | -10/Exiles Mutant | -9/Mines Mutant | -8/Materials Scavenger-Mutant | -7/Factory Scavenger-Gladiator | -7/Lower Caves Scavenger-Gladiator | -7/Lower Caves Gladiator | -6/Factory Scavenger-Gladiator | -5/Factory Hacker-Gladiator | -4/Factory Hacker-Mutant | -4/DSF Hacker-Gladiator | -3/Research Resources | -11 -10 -10 -10 -9 -8 -7 -7 -7 -6 -5 -4 -4 -3 ----------- Run | Yrd Mat Min Exi Min Mat Fac Low Low Fac Fac Fac DSF Res Matter Collected 1072 | 220 140 10 . . 230 . 68 . . 272 . 54 78 Remotely . | . . . . . . . . . . . . . . Salvage Created 3919 | . 261 118 . . 1378 255 151 . 68 1306 . . 382 Parts 208 | . 18 4 . . 81 9 7 . 1 67 . . 21 Haulers Intercepted 6 | . . . . . 4 . . . . 1 . . 1 Recyclers Shooed . | . . . . . . . . . . . . . . Parts Field Recycled . | . . . . . . . . . . . . . . Retrieved Matter . | . . . . . . . . . . . . . . Parts Self-Destructed 9 | . . . . . . . 9 . . . . . . Prevented . | . . . . . . . . . . . . . . Kills | -11 -10 -10 -10 -9 -8 -7 -7 -7 -6 -5 -4 -4 -3 ------- Run | Yrd Mat Min Exi Min Mat Fac Low Low Fac Fac Fac DSF Res Combat Hostiles Destroyed 57 | . 6 2 . . 21 5 3 . 1 15 . . 4 Melee 49 | . . . . . 21 5 3 . 1 15 . . 4 Guns 2 | . 2 . . . . . . . . . . . . Cannons 6 | . 4 2 . . . . . . . . . . . Classes Destroyed 15 | . 1 1 . . 10 1 . . . 2 . . . Worker 1 | . . . . . . . . . . 1 . . . Builder 4 | . . . . . 2 . . . . 1 . . 1 Tunneler 1 | . . 1 . . . . . . . . . . . Hauler 6 | . . . . . 4 . . . . 1 . . 1 Recycler 3 | . . . . . 2 . . . . 1 . . . Operator 1 | . . . . . 1 . . . . . . . . Watcher 2 | . . . . . . . . . . 1 . . 1 Swarmer 4 | . . . . . 4 . . . . . . . . Grunt 24 | . 6 2 . . 7 3 1 . 1 4 . . . Brawler 1 | . . . . . 1 . . . . . . . . Duelist 1 | . . . . . 1 . . . . . . . . Sentry 10 | . . . . . 5 . 1 . . 4 . . . Specialist 2 | . . . . . 2 . . . . . . . . Hunter 4 | . . . . . 1 . . . . 1 . . 2 Programmer 11 | . . . . . . 2 1 . . 6 . . 2 Best Kill Streak 7 | . 2 1 . . 7 3 1 . 1 3 . . 2 Combat Bots Only 6 | . 2 1 . . 6 3 1 . 1 3 . . 2 Max Kills in Single Turn 1 | . 1 1 . . 1 1 1 . 1 1 . . 1 Gunslinging . | . . . . . . . . . . . . . . Exploded . | . . . . . . . . . . . . . . Melee 1 | . . . . . 1 1 1 . 1 1 . . 1 Uniques/NPCs Destroyed . | . . . . . . . . . . . . . . Combat | -11 -10 -10 -10 -9 -8 -7 -7 -7 -6 -5 -4 -4 -3 -------- Run | Yrd Mat Min Exi Min Mat Fac Low Low Fac Fac Fac DSF Res Hostile Shots Fired 828 | . 20 6 . . 130 32 27 . 4 163 . 163 283 Missed 277 | . 4 1 . . 32 9 9 . . 45 . 69 108 Damage Taken 9427 | . 221 73 . . 1505 361 197 . 140 2341 . 866 3723 Core 2438 | . 15 30 . . 358 63 43 . 19 477 . 129 1304 Absorbed by Shields 102 | . . . . . . . . . . . . . 102 Ignored by Resistances 637 | . . . . . . . . . . . . 637 . Core Remaining (%) 76 | 100 . . . 82 34 . . 84 97 52 . 88 . Volleys Fired 23 | . 18 5 . . . . . . . . . . . Largest 2 | . 2 2 . . . . . . . . . . . Hottest 120 | . 120 120 . . . . . . . . . . . Shots Fired 46 | . 36 10 . . . . . . . . . . . Gun 12 | . 12 . . . . . . . . . . . . Cannon 34 | . 24 10 . . . . . . . . . . . Launcher . | . . . . . . . . . . . . . . Special . | . . . . . . . . . . . . . . Kinetic 12 | . 12 . . . . . . . . . . . . Thermal 34 | . 24 10 . . . . . . . . . . . Explosive . | . . . . . . . . . . . . . . Electromagnetic . | . . . . . . . . . . . . . . Robot Hit Streak 7 | . 7 4 . . . . . . . . . . . Robot Miss Streak 2 | . 2 1 . . . . . . . . . . . Penetration Max . | . . . . . . . . . . . . . . Secondary Targets 1 | . 1 . . . . . . . . . . . . Max Gunslinging Chain 1 | . 1 . . . . . . . . . . . . Shots Hit Robots 222 | . 23 5 . . 70 16 4 . 4 77 . 2 21 Core Hits 96 | . 10 4 . . 29 7 3 . 2 32 . 1 8 Critical Kills 1 | . . . . . . . . . . . . . 1 Critical Parts Destroyed 1 | . . . . . . . . . . . . . 1 Critical Strikes 22 | . . . . . 6 2 . . 1 9 . 1 3 Smash 2 | . . . . . . . . . . . . . 2 Sever 19 | . . . . . 6 2 . . 1 9 . 1 . Impale 1 | . . . . . . . . . . . . . 1 Melee Attacks 273 | . . . . . 101 27 6 . 4 102 . 3 30 Impact 9 | . . . . . . . . . . . . . 9 Slashing 243 | . . . . . 101 27 6 . 4 102 . 3 . Piercing 21 | . . . . . . . . . . . . . 21 Sneak Attacks 27 | . . . . . 13 1 . . . 7 . . 6 Combat Hostiles . | . . . . . . . . . . . . . . Follow-up Attacks 31 | . . . . . 12 5 . . . 7 . . 7 Damage Inflicted 8784 | . 344 90 . . 2866 558 144 . 152 3201 . 87 1342 Guns 64 | . 64 . . . . . . . . . . . . Cannons 370 | . 280 90 . . . . . . . . . . . Explosions . | . . . . . . . . . . . . . . Melee 8350 | . . . . . 2866 558 144 . 152 3201 . 87 1342 Ramming . | . . . . . . . . . . . . . . Kinetic 64 | . 64 . . . . . . . . . . . . Thermal 370 | . 280 90 . . . . . . . . . . . Explosive . | . . . . . . . . . . . . . . Electromagnetic . | . . . . . . . . . . . . . . Impact 425 | . . . . . . . . . . . . . 425 Slashing 7008 | . . . . . 2866 558 144 . 152 3201 . 87 . Piercing 917 | . . . . . . . . . . . . . 917 Highest Corruption 22 | . . . . . . 1 2 2 . 22 . . 8 Average Corruption 7 | . . . . . . 1 1 2 . 12 . . 4 Corruption Purged . | . . . . . . . . . . . . . . Corruption Blocked . | . . . . . . . . . . . . . . Effects 67 | . . . . . . . 5 1 . 50 . . 11 Message Errors 18 | . . . . . . . 1 . . 12 . . 5 Matter Fused 13 | . . . . . . . 1 . . 10 . . 2 Heat Flow Errors 8 | . . . . . . . 2 1 . 3 . . 2 Energy Discharges 8 | . . . . . . . 1 . . 7 . . . Parts Rejected 2 | . . . . . . . . . . 1 . . 1 Parts Fused 2 | . . . . . . . . . . 2 . . . Data Loss (minor) 10 | . . . . . . . . . . 9 . . 1 Alerts 2 | . . . . . . . . . . 2 . . . Misdirections 4 | . . . . . . . . . . 4 . . . Overload Shots . | . . . . . . . . . . . . . . Overflow Damage 577 | . . . . . 273 . . . . 242 . . 62 Projectiles . | . . . . . . . . . . . . . . Explosions . | . . . . . . . . . . . . . . Melee 577 | . . . . . 273 . . . . 242 . . 62 Knockbacks 1 | . . . . . . . . . . . . . 1 Impact 1 | . . . . . . . . . . . . . 1 Kinetic . | . . . . . . . . . . . . . . Secondary . | . . . . . . . . . . . . . . Self-Inflicted Damage . | . . . . . . . . . . . . . . Shots . | . . . . . . . . . . . . . . Rammed . | . . . . . . . . . . . . . . Targets Rammed . | . . . . . . . . . . . . . . Kicked . | . . . . . . . . . . . . . . Crushed . | . . . . . . . . . . . . . . Highest Temperature 563 | . 563 126 . . 5 . 265 165 . 245 . . 168 Average Temperature 137 | . 205 49 . . 5 . 119 83 . 112 . . 63 Received Heat Transfer 1387 | . 120 42 . . 369 108 33 . 36 306 . . 373 Effects 7 | . 7 . . . . . . . . . . . . Shutdowns 1 | . 1 . . . . . . . . . . . . Energy Bleed 2 | . 2 . . . . . . . . . . . . Interference 1 | . 1 . . . . . . . . . . . . Matter Decay 1 | . 1 . . . . . . . . . . . . Damage (minor) 2 | . 2 . . . . . . . . . . . . Siege Activations . | . . . . . . . . . . . . . . Robots Corrupted . | . . . . . . . . . . . . . . Combat Hostiles . | . . . . . . . . . . . . . . Parts Fried . | . . . . . . . . . . . . . . Impact Corruptions 1 | . . . . . . . . . . . . . 1 Robots Melted . | . . . . . . . . . . . . . . Combat Hostiles . | . . . . . . . . . . . . . . Parts Melted 2 | . 2 . . . . . . . . . . . . Heat Transferred 777 | . 592 185 . . . . . . . . . . . Parts Sabotaged . | . . . . . . . . . . . . . . Parts Stolen . | . . . . . . . . . . . . . . Parts Stripped . | . . . . . . . . . . . . . . Power Chain Reactions . | . . . . . . . . . . . . . . Alert | -11 -10 -10 -10 -9 -8 -7 -7 -7 -6 -5 -4 -4 -3 ------- Run | Yrd Mat Min Exi Min Mat Fac Low Low Fac Fac Fac DSF Res Peak Influence 414 | . 148 73 . . 414 196 . . 29 246 104 72 90 Initial 188 | . . . . . . 188 . . 9 . 100 72 18 Average 83 | . 43 47 . . 170 135 . . 7 94 102 47 26 Maximum Alert Level 2 | . . . . . 2 . . . . 1 . . . Low Security (%) 89 | 100 100 100 . 100 58 100 . . 100 85 100 100 100 Level 1 10 | . . . . . 40 . . . . 14 . . . Level 2 . | . . . . . . . . . . . . . . Level 3 . | . . . . . . . . . . . . . . Level 4 . | . . . . . . . . . . . . . . Level 5 . | . . . . . . . . . . . . . . High Security . | . . . . . . . . . . . . . . Max Security . | . . . . . . . . . . . . . . Squads Dispatched 18 | . 1 . . . 6 1 . . 2 4 . 1 3 Investigation . | . . . . . . . . . . . . . . Extermination 5 | . . . . . . 1 . . 1 2 . . 1 Reinforcement 10 | . 1 . . . 3 . . . 1 2 . 1 2 Assault . | . . . . . . . . . . . . . . Garrison 3 | . . . . . 3 . . . . . . . . Intercept . | . . . . . . . . . . . . . . Searches Triggered . | . . . . . . . . . . . . . . Construction Impeded . | . . . . . . . . . . . . . . Haulers Reinforced . | . . . . . . . . . . . . . . Active Scanning Responses . | . . . . . . . . . . . . . . Cargo Convoy Interrupts . | . . . . . . . . . . . . . . Stealth | -11 -10 -10 -10 -9 -8 -7 -7 -7 -6 -5 -4 -4 -3 --------- Run | Yrd Mat Min Exi Min Mat Fac Low Low Fac Fac Fac DSF Res Distress Signals 9 | . . . . . 5 1 . . . 2 . . 1 Communications Jammed 44 | . . . . . . . . . 36 8 . . . Distress Signals 44 | . . . . . . . . . 36 8 . . . Times Spotted 136 | . 9 4 . . 42 9 3 . 3 30 1 5 30 Peak Tracking Total 16 | . 2 2 . . 10 4 1 . 2 5 1 2 16 Tactical Retreats 8 | . . 1 . . 1 . . . . 2 . 2 2 Traps | -11 -10 -10 -10 -9 -8 -7 -7 -7 -6 -5 -4 -4 -3 ------- Run | Yrd Mat Min Exi Min Mat Fac Low Low Fac Fac Fac DSF Res Traps Triggered 6 | . . . . . . . . . 1 1 . 1 3 Indirectly . | . . . . . . . . . . . . . . Trap Hack Attempts . | . . . . . . . . . . . . . . Triggered . | . . . . . . . . . . . . . . Disarmed . | . . . . . . . . . . . . . . Reprogrammed . | . . . . . . . . . . . . . . Reused . | . . . . . . . . . . . . . . Traps Extracted . | . . . . . . . . . . . . . . Installed . | . . . . . . . . . . . . . . Triggered . | . . . . . . . . . . . . . . Machines | -11 -10 -10 -10 -9 -8 -7 -7 -7 -6 -5 -4 -4 -3 ---------- Run | Yrd Mat Min Exi Min Mat Fac Low Low Fac Fac Fac DSF Res Machines Disabled . | . . . . . . . . . . . . . . Max in Single Turn . | . . . . . . . . . . . . . . Garrison Access 2 | . . . . . 1 . . . . 1 . . . Machines Repaired . | . . . . . . . . . . . . . . Machines Dismantled . | . . . . . . . . . . . . . . Machines Sabotaged . | . . . . . . . . . . . . . . Overloaded Fab Kills . | . . . . . . . . . . . . . . Hacking | -11 -10 -10 -10 -9 -8 -7 -7 -7 -6 -5 -4 -4 -3 --------- Run | Yrd Mat Min Exi Min Mat Fac Low Low Fac Fac Fac DSF Res Machines Accessed 19 | . 1 . . . 4 3 . . 2 6 2 . 1 Terminals 16 | . 1 . . . 3 2 . . 2 5 2 . 1 Fabricators . | . . . . . . . . . . . . . . Repair Stations . | . . . . . . . . . . . . . . Recycling Units . | . . . . . . . . . . . . . . Scanalyzers . | . . . . . . . . . . . . . . Garrison Access 3 | . . . . . 1 1 . . . 1 . . . Total Hacks 67 | . 2 . . . 15 6 . . 6 27 5 . 6 Successful 23 | . 1 . . . 6 3 . . 1 8 2 . 2 Failed 44 | . 1 . . . 9 3 . . 5 19 3 . 4 Catastrophic 9 | . . . . . 1 1 . . 1 3 2 . 1 Database Lockouts . | . . . . . . . . . . . . . . Manual 42 | . 1 . . . 8 2 . . 6 16 4 . 5 Terminals 61 | . 2 . . . 12 4 . . 6 26 5 . 6 Fabricators . | . . . . . . . . . . . . . . Repair Stations . | . . . . . . . . . . . . . . Recycling Units . | . . . . . . . . . . . . . . Scanalyzers . | . . . . . . . . . . . . . . Garrison Access 6 | . . . . . 3 2 . . . 1 . . . Terminal Hacks 14 | . 1 . . . 4 2 . . . 5 1 . 1 Record 2 | . . . . . 2 . . . . . . . . Open DSF 2 | . . . . . . 1 . . . . 1 . . Level Access Points 1 | . . . . . 1 . . . . . . . . Branch Access Points 3 | . 1 . . . . 1 . . . . . . 1 Terminal Index 1 | . . . . . . . . . . 1 . . . Alert Level 1 | . . . . . . . . . . 1 . . . Unreport Threat 1 | . . . . . . . . . . 1 . . . Zone Layout 3 | . . . . . 1 . . . . 2 . . . Fabricator Hacks . | . . . . . . . . . . . . . . Repair Station Hacks . | . . . . . . . . . . . . . . Recycling Unit Hacks . | . . . . . . . . . . . . . . Scanalyzer . | . . . . . . . . . . . . . . Garrison Access Hacks 2 | . . . . . 1 . . . . 1 . . . Seal Access 2 | . . . . . 1 . . . . 1 . . . Unauthorized Hacks 7 | . . . . . 1 1 . . 1 2 1 . 1 Terminals 7 | . . . . . 1 1 . . 1 2 1 . 1 Botnet 7 | . . . . . 1 1 . . 1 2 1 . 1 Fabricators . | . . . . . . . . . . . . . . Repair Stations . | . . . . . . . . . . . . . . Recycling Units . | . . . . . . . . . . . . . . Scanalyzers . | . . . . . . . . . . . . . . Garrison Access . | . . . . . . . . . . . . . . Data Cores Recovered . | . . . . . . . . . . . . . . Used . | . . . . . . . . . . . . . . Hacking Detections 16 | . 1 . . . 4 2 . . 2 5 1 . 1 Full Trace Events . | . . . . . . . . . . . . . . Feedback Events . | . . . . . . . . . . . . . . Feedback Blocked . | . . . . . . . . . . . . . . Robot Schematics Acquired . | . . . . . . . . . . . . . . Robots Built . | . . . . . . . . . . . . . . Authchips . | . . . . . . . . . . . . . . Time . | . . . . . . . . . . . . . . Total Robot Build Rating . | . . . . . . . . . . . . . . Part Schematics Acquired . | . . . . . . . . . . . . . . Parts Built . | . . . . . . . . . . . . . . Authchips . | . . . . . . . . . . . . . . Time . | . . . . . . . . . . . . . . Total Part Build Rating . | . . . . . . . . . . . . . . Parts Repaired . | . . . . . . . . . . . . . . Time . | . . . . . . . . . . . . . . Parts Recycled . | . . . . . . . . . . . . . . Recycled Matter . | . . . . . . . . . . . . . . Retrieved Matter . | . . . . . . . . . . . . . . Retrieved Components . | . . . . . . . . . . . . . . Parts Scanalyzed . | . . . . . . . . . . . . . . Part Schematics Acquired . | . . . . . . . . . . . . . . Parts Damaged . | . . . . . . . . . . . . . . Bothacking | -11 -10 -10 -10 -9 -8 -7 -7 -7 -6 -5 -4 -4 -3 ------------ Run | Yrd Mat Min Exi Min Mat Fac Low Low Fac Fac Fac DSF Res Used RIF Installer . | . . . . . . . . . . . . . . Robots Hacked . | . . . . . . . . . . . . . . Non-combat . | . . . . . . . . . . . . . . Combat . | . . . . . . . . . . . . . . Robot Hacks Applied . | . . . . . . . . . . . . . . Relay Couplers Released . | . . . . . . . . . . . . . . Fabnet Peak Effective % . | . . . . . . . . . . . . . . Robots Rewired . | . . . . . . . . . . . . . . Allies Hacked . | . . . . . . . . . . . . . . Hacks Repelled . | . . . . . . . . . . . . . . Allies | -11 -10 -10 -10 -9 -8 -7 -7 -7 -6 -5 -4 -4 -3 -------- Run | Yrd Mat Min Exi Min Mat Fac Low Low Fac Fac Fac DSF Res Total Allies 3 | . . 3 . . . . . . . . . . . Largest Group 3 | . . 3 3 3 3 . . . . . . . . Highest-Rated Group 40 | . . 40 40 40 40 . . . . . . . . Highest-Rated Ally 16 | . . 16 16 16 16 . . . . . . . . Total Orders . | . . . . . . . . . . . . . . Ally Attacks 14 | . . 10 . . 4 . . . . . . . . Total Damage 165 | . . 121 . . 44 . . . . . . . . Kills 2 | . . 2 . . . . . . . . . . . Allies Corrupted . | . . . . . . . . . . . . . . Allies Melted . | . . . . . . . . . . . . . . Intel | -11 -10 -10 -10 -9 -8 -7 -7 -7 -6 -5 -4 -4 -3 ------- Run | Yrd Mat Min Exi Min Mat Fac Low Low Fac Fac Fac DSF Res Robot Analysis Total . | . . . . . . . . . . . . . . Derelict Logs Recovered 2 | . . 1 . 1 . . . . . . . . . Drone Launches . | . . . . . . . . . . . . . . Drone Recoveries . | . . . . . . . . . . . . . . Exploration | -11 -10 -10 -10 -9 -8 -7 -7 -7 -6 -5 -4 -4 -3 ------------- Run | Yrd Mat Min Exi Min Mat Fac Low Low Fac Fac Fac DSF Res Turns Passed 7326 | 7 451 481 651 130 993 769 753 31 562 1341 112 185 860 Spaces Moved 3843 | 3 229 289 387 55 432 427 447 20 332 675 68 75 404 Core 67 | . . . . . . . . . . . . . 67 Treads 3728 | 3 229 289 387 55 432 427 447 20 332 675 68 75 289 Legs . | . . . . . . . . . . . . . . Wheels . | . . . . . . . . . . . . . . Hover 48 | . . . . . . . . . . . . . 48 Flight . | . . . . . . . . . . . . . . Fastest Speed 50 | 160 160 160 160 240 160 163 163 163 163 160 160 160 50 Average Speed 167 | 160 160 160 165 240 163 163 163 163 163 162 160 234 187 Slowest Speed 330 | 160 160 160 240 240 240 163 163 163 163 240 160 240 330 Overloaded Moves . | . . . . . . . . . . . . . . Propulsion Burnouts . | . . . . . . . . . . . . . . Robots Hopped . | . . . . . . . . . . . . . . Cave-ins Triggered . | . . . . . . . . . . . . . . Exploration Rate (%) 35 | 2 41 49 89 23 56 16 66 8 12 26 3 86 14 Regions Visited 13 Branch Regions 5 Pre-discovered Areas 1 | . . 1 . . . . . . . . . . . Known Exits Taken 4 | . 1 . . . 1 1 . . . . 1 . . Unknown Exits Taken 8 | 1 . 1 1 1 . . 1 1 1 1 . . . Scrap Searched 1 | . . . . . . . 1 . . . . . . Spaces Dug 11 | . . . . . 2 2 . . . 6 . . 1 Terrain Destroyed 11 | . . . . . 2 2 . . . 6 . . 1 Melee 11 | . . . . . 2 2 . . . 6 . . 1 Projectile . | . . . . . . . . . . . . . . AOE . | . . . . . . . . . . . . . . Terrain Rammed . | . . . . . . . . . . . . . . Walls Destroyed . | . . . . . . . . . . . . . . Machines Disabled . | . . . . . . . . . . . . . . Actions | -11 -10 -10 -10 -9 -8 -7 -7 -7 -6 -5 -4 -4 -3 --------- Run | Yrd Mat Min Exi Min Mat Fac Low Low Fac Fac Fac DSF Res Total 4405 | 4 280 299 398 54 624 473 467 19 350 827 71 82 457 Wait 153 | . 12 . . . 73 15 14 . 4 32 . . 3 Move 3830 | 2 228 288 386 54 431 426 446 19 331 674 67 74 404 Hop . | . . . . . . . . . . . . . . Pick Up 47 | . 7 2 1 . 20 3 1 . 3 7 . . 3 Fast Attach 25 | . 4 . 4 . 4 1 1 . . 1 . 2 8 Attach 42 | . . . . . 11 2 . . 3 9 4 1 12 Detach 3 | . 1 . . . . . . . . 1 . . 1 Swap 26 | 2 2 1 2 . 3 3 . . 2 7 . . 4 Drop 34 | . 8 3 5 . . 4 1 . 3 6 . 2 2 Fire 23 | . 18 5 . . . . . . . . . . . Melee 222 | . . . . . 82 19 4 . 4 90 . 3 20 Ram . | . . . . . . . . . . . . . . Kick . | . . . . . . . . . . . . . . Crush . | . . . . . . . . . . . . . . Escape Stasis . | . . . . . . . . . . . . . . Rewire . | . . . . . . . . . . . . . . Trap . | . . . . . . . . . . . . . . Miscellaneous . | . . . . . . . . . . . . . . Route ------- -11/Scrapyard -10/Materials (discovered 2 exits: [*Mat] / *Min) -10/Mines (discovered 2 exits: [*Mat] / [*Exi]) -10/Exiles -9/Mines -8/Materials (discovered 3 exits: *Fac x3) -7/Factory (discovered 3 exits: Sto / *Low x2) -7/Lower Caves -7/Lower Caves -6/Factory -5/Factory -4/Factory -4/DSF -3/Research (discovered 3 exits: Arm / Qua x2) History --------- Turn | Location | Event 4 | -11/Scrapyard | Discovered new exit (range 1) 8 | -11/Scrapyard | Entered Materials 98 | -10/Materials | Identified exit to Mines 311 | -10/Materials | Build established: Mutant 406 | -10/Materials | Discovered new exit (range 12) 459 | -10/Materials | Entered Mines 470 | -10/Mines | Met a Derelict bent on vengeance 610 | -10/Mines | Assisted by bots powering up and referring to "LRC-V3" 781 | -10/Mines | A weapon hastily lodged in a ceiling crevice suddenly fell to the ground 884 | -10/Mines | Learned location of Zion (-7) 887 | -10/Mines | Discovered new exit (range 16) 932 | -10/Mines | Deemed a non-threat by the Exiles lab entrance 933 | -10/Mines | Discovered new exit (range 5) 940 | -10/Mines | Entered Exiles 940 | -10/Exiles | Found Exiles lab destroyed 940 | -10/Exiles | Accompanied by 3 allies 1572 | -10/Exiles | Discovered new exit (range 10) 1591 | -10/Exiles | Entered Mines 1591 | -9/Mines | Accompanied by 3 allies 1656 | -9/Mines | Discovered new exit (range 10) 1721 | -9/Mines | Entered Materials 1721 | -8/Materials | Accompanied by 3 allies 1721 | -8/Materials | Evolved 4 slots: Propulsion x1, Utility x3 1916 | -8/Materials | Lost 3 allies 2189 | -8/Materials | Lost 4 parts (1p1n2u) 2265 | -8/Materials | Identified exit to Factory 2293 | -8/Materials | Garrison activated, responded to threat 2323 | -8/Materials | Core integrity fell below 50% 2631 | -8/Materials | Build established: Scavenger-Mutant 2714 | -8/Materials | Entered Factory 2714 | -7/Factory | Evolved 2 slots: Utility x2 2822 | -7/Factory | Identified exit to DSF 3104 | -7/Factory | Identified exit to Storage 3104 | -7/Factory | Identified exit to Lower Caves 3483 | -7/Factory | Entered Lower Caves 3515 | -7/Lower Caves | Attracted the attention of an 0b10 checkpoint 3704 | -7/Lower Caves | Build established: Gladiator 4108 | -7/Lower Caves | Build established: Scavenger-Gladiator 4221 | -7/Lower Caves | Discovered new exit (range 11) 4236 | -7/Lower Caves | Entered another Lower Caves area 4258 | -7/Lower Caves | Discovered new exit (range 7) 4267 | -7/Lower Caves | Entered Factory 4267 | -6/Factory | Evolved 2 slots: Utility x2 4602 | -6/Factory | Build established: Gladiator 4799 | -6/Factory | Discovered new exit (range 19) 4829 | -6/Factory | Entered another Factory area 4829 | -5/Factory | Evolved 2 slots: Utility x2 5184 | -5/Factory | System corruption reached 10% 5294 | -5/Factory | Build established: Scavenger-Gladiator 5959 | -5/Factory | Lost 3 parts (1p1n1w) 6135 | -5/Factory | Discovered new exit (range 18) 6170 | -5/Factory | Entered another Factory area 6170 | -4/Factory | Evolved 2 slots: Utility x2 6232 | -4/Factory | Build established: Hacker-Gladiator 6251 | -4/Factory | Identified exit to DSF 6282 | -4/Factory | Entered DSF 6291 | -4/DSF | Found Hvy. Reactive Plating 6309 | -4/DSF | Additional patrols routed to DSF 6431 | -4/DSF | Discovered new exit (range 16) 6433 | -4/DSF | Lost 6 parts (1p3u2w) 6467 | -4/DSF | Entered Research 6467 | -3/Research | Evolved 2 slots: Utility x1, Weapon x1 6507 | -3/Research | Found Enh. Force Lance 6511 | -3/Research | Found Enh. Force Lance 6567 | -3/Research | Identified exit to Armory 6567 | -3/Research | Identified exit to Quarantine 7272 | -3/Research | Core integrity fell below 50% 7311 | -3/Research | Lost 18 parts (1p4n9u4w) 7318 | -3/Research | Core integrity fell below 20% 7327 | -3/Research | Destroyed by H-77 Assassin with High-powered Shotgun Last Messages --------------- 07320_ Penetrated by Slug. 07320_ Slug penetrates A-15 Conveyor. 07320_ Penetrated by Slug. 07321_ K-01 Serf collects debris. 07323_ K-01 Serf destroyed. 07323_ R-10 Processor collects Corrupted Wheel. 07323_ Adv. System Shield destroyed. 07323_ Penetrated by Slug. 07323_ Mic. Antimatter Reactor destroyed. 07323_ Slug penetrates Wall. 07323_ Penetrated by Slug. 07323_ Slug penetrates Wall. 07326_ P-80 Master resets P-80 Master, system corruption cleaned. 07326_ P-80 Master resets U-05 Engineer, system corruption cleaned. 07327_ Slug penetrates Reinforced Barrier. 07327_ Slug penetrates Wall. 07327_ Penetrated by Slug. [Achievement: 10k Club] Map ----- +----------------------------------------------------+ | ?????????>???????????????????????????????????????? | | ?????????????????????????????????????????????????? | | ?????????????????????????????????????????????????? | | ?????????????????????????????????????????????????? | | ?????????????????????????????????????????????????? | | ?????????????????????????????????????????????????? | | ?????????????????????????????????????????????????? | | ????????? ??????????????????????????????????????? | | ????????? ??????????????????????????????????????? | | ???????# ??????????????????????????????????????? | | ???????# ??????????????????????????????????????? | | ???????# #?????????????????????????????????????? | | ???????+ #?????????????????????????????????????? | | ???????# #?????????????????????????????????????? | | ???????# #?????????????????????????????????????? | | ??????## #####?????????????????????????????????? | | ####### #?????????????????????????????????? | | #?????????????????????????????????? | | #?????????????????????????????????? | | #?????????????????????????????????? | | #?????????????????????????????????? | | """"""" #?????????????????????????????????? | | """"""" #???####??????????? #?????????????? | | """"""" #####T ######### ######????????? | | u A k w ????? | | p= R h @ k ????? | | hx p !%= =% ????? | | ######+###%u hw k ????? | | ????# ###+############+#################??????? | | ????# # ??????????????????????????????????? | | ????# # ?????????????????????????????????? | | ????# #""" ????????????????????????????????? | | ????# #"Y ??????????????????????????????? | | ????# #""" #?????????????????????????????? | | ????# # #?????????????????????????????? | | ##### # #?????????????????????????????? | | / # #?????????????????????????????? | | ####################?????????????????????????????? | | ?????????????????????????????????????????????????? | | ?????????????????????????????????????????????????? | | ?????????????????????????????????????????????????? | | ?????????????????????????????????????????????????? | | ?????????????????????????????????????????????????? | | ?????????????????????????????????????????????????? | | ?????????????????????????????????????????????????? | | ?????????????????????????????????????????????????? | | ?????????????????????????????????????????????????? | | ?????????????????????????????????????????????????? | | ?????????????????????????????????????????????????? | | ?????????????????????????????????????????????????? | +----------------------------------------------------+ Best States ------------- Heat Dissipation 46 Energy Generation 19 Energy Capacity 315 Matter Stores 300 Matter Capacity 300 Sight Range 22 Robot Scan Range 15 Terrain Scan Density 10 Jamming Range 14 Armor Coverage 1350 Resistance: KI 40 Evasion (%) 54 Melee Accuracy 22 Target Analysis 11 Core Analysis 9 Recoil Reduction 3 Offensive Hacking 10 Defensive Hacking 24 Authchip Count 1 Item Schematics ----------------- None Robot Schematics ------------------ None Fabricated ------------ Nothing Alien Tech Used ----------------- None Achievements -------------- 10k Club Total Silence Challenges ------------ None Game ------ Seed SlugEfficiencyDoublenader Manual? 0 Play Time 01:17:02 Cumulative 13.9 hours Start 2024.04.22 @ 10:56:51 End 2024.04.22 @ 12:12:13 Sessions 1 Manual Loads 0 Difficulty Rogue Special Mode None Game No. 15 Rogue 15 Adventurer 0 Explorer 0 Win Type - Total 0 Types 0/0/0/0/0/0/0/0/0 Lore% 14 Gallery% 22 Achievement% 18 Wizard Run 0 Options --------- Layout 1 ASCII 0 Keyboard 0 Movement Numpad Keybinds 0 Fullscreen 1 Font 24/Smallcaps Map View 50x40 Zoom Use 0% Tactical HUD 1 Map Filters NONE Filters NONE Steam 1 RUN: 0bd2286c-afcd-482b-a552-ec451575b900